[Event "Late Titled Tuesday Blitz February 8 2022"]
[White "Jaskolka, Tomasz"]
[Black "Zierk, Steven"]
[WhiteFideId "1170791"]
[BlackFideId "2034255"]
[WhiteElo "2054"]
[BlackElo "2494"]
[Result "0-1"]
[Round "02"]
[TimeControl "180+1"]
[Date "2022.02.09"]
[WhiteClock "0:00:05"]
[BlackClock "0:00:46"]

1. d4 {[%clk 0:03:00]}  Nf6 {[%clk 0:02:57]} 2. Bf4 {[%clk 0:02:57]}  g6 {[%clk 0:02:56]} 3. Nc3 {[%clk 0:02:56]}  Bg7 {[%clk 0:02:57]} 4. e4 {[%clk 0:02:57]}  d6 {[%clk 0:02:57]} 5. Qd2 {[%clk 0:02:55]}  Nbd7 {[%clk 0:02:54]} 6. Nf3 {[%clk 0:02:54]}  c6 {[%clk 0:02:54]} 7. Bh6 {[%clk 0:02:48]}  Bxh6 {[%clk 0:02:52]} 8. Qxh6 {[%clk 0:02:49]}  Qa5 {[%clk 0:02:41]} 9. Bd3 {[%clk 0:02:38]}  b5 {[%clk 0:02:35]} 10. O-O {[%clk 0:02:34]}  b4 {[%clk 0:02:35]} 11. Nd1 {[%clk 0:02:32]}  Ba6 {[%clk 0:02:33]} 12. Ne3 {[%clk 0:02:31]}  Bxd3 {[%clk 0:02:31]} 13. cxd3 {[%clk 0:02:31]}  Qh5 {[%clk 0:02:31]} 14. Qxh5 {[%clk 0:02:22]}  Nxh5 {[%clk 0:02:29]} 15. g3 {[%clk 0:02:22]}  O-O {[%clk 0:02:26]} 16. Rfc1 {[%clk 0:02:20]}  c5 {[%clk 0:02:26]} 17. a3 {[%clk 0:02:02]}  cxd4 {[%clk 0:02:20]} 18. Nxd4 {[%clk 0:02:03]}  Nc5 {[%clk 0:02:20]} 19. axb4 {[%clk 0:01:54]}  Nxd3 {[%clk 0:02:19]} 20. Rc7 {[%clk 0:01:55]}  Nxb4 {[%clk 0:02:14]} 21. Rxe7 {[%clk 0:01:51]}  a5 {[%clk 0:02:11]} 22. Nc4 {[%clk 0:01:41]}  d5 {[%clk 0:02:05]} 23. exd5 {[%clk 0:01:36]}  Nxd5 {[%clk 0:02:01]} 24. Re5 {[%clk 0:01:32]}  Ndf6 {[%clk 0:01:53]} 25. Rexa5 {[%clk 0:01:31]}  Rad8 {[%clk 0:01:53]} 26. Nc6 {[%clk 0:01:27]}  Rd3 {[%clk 0:01:52]} 27. b4 {[%clk 0:01:17]}  Rc3 {[%clk 0:01:48]} 28. N4e5 {[%clk 0:01:12]}  Ne4 {[%clk 0:01:47]} 29. b5 {[%clk 0:00:53]}  Rc2 {[%clk 0:01:43]} 30. R1a2 {[%clk 0:00:51]}  Rc1+ {[%clk 0:01:37]} 31. Kg2 {[%clk 0:00:51]}  Ng7 {[%clk 0:01:29]} 32. Ne7+ {[%clk 0:00:39]}  Kh8 {[%clk 0:01:28]} 33. Ra8 {[%clk 0:00:40]}  Ne6 {[%clk 0:01:26]} 34. Rxf8+ {[%clk 0:00:33]}  Nxf8 {[%clk 0:01:27]} 35. Nxf7+ {[%clk 0:00:33]}  Kg7 {[%clk 0:01:28]} 36. Ne5 {[%clk 0:00:33]}  Kf6 {[%clk 0:01:24]} 37. N5c6 {[%clk 0:00:33]}  Rb1 {[%clk 0:01:20]} 38. Nd5+ {[%clk 0:00:33]}  Ke6 {[%clk 0:01:19]} 39. Nf4+ {[%clk 0:00:34]}  Kd6 {[%clk 0:01:19]} 40. Re2 {[%clk 0:00:31]}  Nc3 {[%clk 0:01:15]} 41. Rd2+ {[%clk 0:00:30]}  Kc7 {[%clk 0:01:14]} 42. Nd4 {[%clk 0:00:22]}  Nxb5 {[%clk 0:01:09]} 43. Nde6+ {[%clk 0:00:22]}  Nxe6 {[%clk 0:01:09]} 44. Nxe6+ {[%clk 0:00:23]}  Kc6 {[%clk 0:01:06]} 45. Nf8 {[%clk 0:00:23]}  Nc3 {[%clk 0:01:04]} 46. Rc2 {[%clk 0:00:23]}  Rb3 {[%clk 0:01:04]} 47. Nxh7 {[%clk 0:00:24]}  Kd5 {[%clk 0:01:03]} 48. Nf6+ {[%clk 0:00:23]}  Ke5 {[%clk 0:01:03]} 49. Ng4+ {[%clk 0:00:24]}  Ke6 {[%clk 0:01:03]} 50. Ne3 {[%clk 0:00:24]}  g5 {[%clk 0:01:02]} 51. h4 {[%clk 0:00:23]}  gxh4 {[%clk 0:01:02]} 52. gxh4 {[%clk 0:00:23]}  Ne4 {[%clk 0:01:02]} 53. Kf3 {[%clk 0:00:19]}  Nf6 {[%clk 0:01:00]} 54. Kf4 {[%clk 0:00:17]}  Rb4+ {[%clk 0:01:00]} 55. Rc4 {[%clk 0:00:17]}  Rb2 {[%clk 0:00:56]} 56. f3 {[%clk 0:00:16]}  Re2 {[%clk 0:00:54]} 57. Rc6+ {[%clk 0:00:16]}  Kf7 {[%clk 0:00:53]} 58. Ng4 {[%clk 0:00:11]}  Nd5+ {[%clk 0:00:51]} 59. Kg5 {[%clk 0:00:10]}  Re8 {[%clk 0:00:49]} 60. Rd6 {[%clk 0:00:05]}  Rg8+ {[%clk 0:00:47]} 61. Kf5 {[%clk 0:00:05]}  Ne7+ {[%clk 0:00:47]} 62. Kf4 {[%clk 0:00:06]}  Ra8 {[%clk 0:00:44]} 63. h5 {[%clk 0:00:05]}  Ra4+ {[%clk 0:00:43]} 64. Kg3 {[%clk 0:00:05]}  Nf5+ {[%clk 0:00:43]} 65. Kh3 {[%clk 0:00:05]}  Nxd6 {[%clk 0:00:44]} 66. h6 {[%clk 0:00:05]}  Kg6 {[%clk 0:00:44]} 67. Kg3 {[%clk 0:00:04]}  Nf5+ {[%clk 0:00:43]} 68. Kh3 {[%clk 0:00:04]}  Nxh6 {[%clk 0:00:44]} 69. Ne5+ {[%clk 0:00:04]}  Kf5 {[%clk 0:00:44]} 70. Nd3 {[%clk 0:00:04]}  Ra3 {[%clk 0:00:44]} 71. Ne1 {[%clk 0:00:05]}  Kf4 {[%clk 0:00:44]} 72. Kg2 {[%clk 0:00:04]}  Nf5 {[%clk 0:00:44]} 73. Kf2 {[%clk 0:00:05]}  Ra2+ {[%clk 0:00:45]} 74. Kf1 {[%clk 0:00:05]}  Ne3+ {[%clk 0:00:44]} 75. Kg1 {[%clk 0:00:05]}  Kg3 {[%clk 0:00:45]} 76. Kh1 {[%clk 0:00:06]}  Ra1 {[%clk 0:00:45]} 77. f4 {[%clk 0:00:05]}  Rxe1# {[%clk 0:00:46]} 0-1


[Site "https://www.chess.com"]

[Event "Late Titled Tuesday Blitz February 8 2022"]
[White "Jobava, Baadur"]
[Black "Michelakos, Panagiotis"]
[WhiteFideId "13601520"]
[BlackFideId "4216067"]
[WhiteElo "2617"]
[BlackElo "2140"]
[Result "0-1"]
[Round "02"]
[TimeControl "180+1"]
[Date "2022.02.08"]
[WhiteClock "0:00:57"]
[BlackClock "0:00:15"]

1. b3 {[%clk 0:03:00]}  e5 {[%clk 0:02:59]} 2. Bb2 {[%clk 0:03:01]}  Nc6 {[%clk 0:02:57]} 3. Nf3 {[%clk 0:03:01]}  d6 {[%clk 0:02:55]} 4. d4 {[%clk 0:03:00]}  e4 {[%clk 0:02:51]} 5. d5 {[%clk 0:02:59]}  Nce7 {[%clk 0:02:48]} 6. Nfd2 {[%clk 0:02:59]}  f5 {[%clk 0:02:38]} 7. c4 {[%clk 0:02:58]}  Ng6 {[%clk 0:02:34]} 8. e3 {[%clk 0:02:57]}  Nf6 {[%clk 0:02:31]} 9. Nc3 {[%clk 0:02:58]}  Be7 {[%clk 0:02:28]} 10. Qc2 {[%clk 0:02:58]}  O-O {[%clk 0:02:26]} 11. O-O-O {[%clk 0:02:58]}  Ng4 {[%clk 0:02:21]} 12. Ndb1 {[%clk 0:02:54]}  a6 {[%clk 0:02:12]} 13. h3 {[%clk 0:02:53]}  N4e5 {[%clk 0:02:10]} 14. a4 {[%clk 0:02:50]}  c6 {[%clk 0:02:00]} 15. Na3 {[%clk 0:02:49]}  c5 {[%clk 0:01:56]} 16. Be2 {[%clk 0:02:48]}  Bd7 {[%clk 0:01:54]} 17. Kb1 {[%clk 0:02:45]}  Bf6 {[%clk 0:01:42]} 18. f4 {[%clk 0:02:43]}  exf3 {[%clk 0:01:40]} 19. gxf3 {[%clk 0:02:44]}  f4 {[%clk 0:01:34]} 20. Ne4 {[%clk 0:02:35]}  fxe3 {[%clk 0:01:24]} 21. Nxd6 {[%clk 0:02:33]}  Nxf3 {[%clk 0:01:10]} 22. Nxb7 {[%clk 0:02:16]}  Qb6 {[%clk 0:01:01]} 23. Bxf3 {[%clk 0:01:26]}  Bxb2 {[%clk 0:00:50]} 24. Qxb2 {[%clk 0:01:26]}  Rxf3 {[%clk 0:00:46]} 25. Nxc5 {[%clk 0:01:27]}  Qxc5 {[%clk 0:00:44]} 26. Rhe1 {[%clk 0:01:27]}  Rb8 {[%clk 0:00:40]} 27. Nc2 {[%clk 0:01:24]}  Bf5 {[%clk 0:00:27]} 28. Rc1 {[%clk 0:01:17]}  e2 {[%clk 0:00:24]} 29. Ka2 {[%clk 0:01:12]}  Rfxb3 {[%clk 0:00:23]} 30. Qxb3 {[%clk 0:01:13]}  Rxb3 {[%clk 0:00:22]} 31. Kxb3 {[%clk 0:01:14]}  Ne5 {[%clk 0:00:20]} 32. Na3 {[%clk 0:01:12]}  Nd3 {[%clk 0:00:19]} 33. Nc2 {[%clk 0:00:57]}  Nxc1+ {[%clk 0:00:16]} 34. Rxc1 {[%clk 0:00:57]}  Bxc2+ {[%clk 0:00:16]} 35. Kc3 {[%clk 0:00:57]}  Bd1 {[%clk 0:00:16]} 36. Kd2 {[%clk 0:00:57]}  Qb4+ {[%clk 0:00:15]} 37. Kd3 {[%clk 0:00:57]}  e1=Q {[%clk 0:00:15]} 0-1


[Site "https://www.chess.com"]

[Event "Late Titled Tuesday Blitz February 8 2022"]
[White "Kamsky, Gata"]
[Black "Carbone, Diego"]
[WhiteFideId "2000024"]
[BlackFideId "3002179"]
[WhiteElo "2645"]
[BlackElo "2199"]
[Result "1-0"]
[Round "02"]
[TimeControl "180+1"]
[Date "2022.02.08"]
[WhiteClock "0:00:15"]
[BlackClock "0:00:05"]

1. d4 {[%clk 0:03:00]}  Nf6 {[%clk 0:02:59]} 2. Nf3 {[%clk 0:03:00]}  e6 {[%clk 0:02:56]} 3. Bf4 {[%clk 0:02:59]}  d5 {[%clk 0:02:56]} 4. e3 {[%clk 0:02:58]}  c5 {[%clk 0:02:56]} 5. c3 {[%clk 0:02:58]}  Nc6 {[%clk 0:02:57]} 6. Nbd2 {[%clk 0:02:57]}  Bd6 {[%clk 0:02:57]} 7. Bg3 {[%clk 0:02:57]}  O-O {[%clk 0:02:57]} 8. Bd3 {[%clk 0:02:57]}  h6 {[%clk 0:02:57]} 9. O-O {[%clk 0:02:35]}  b6 {[%clk 0:02:51]} 10. Ne5 {[%clk 0:02:27]}  Bb7 {[%clk 0:02:49]} 11. f4 {[%clk 0:02:26]}  Ne7 {[%clk 0:02:49]} 12. Bh4 {[%clk 0:02:24]}  Nf5 {[%clk 0:02:46]} 13. Bxf5 {[%clk 0:01:31]}  exf5 {[%clk 0:02:23]} 14. Bxf6 {[%clk 0:01:27]}  Qxf6 {[%clk 0:02:22]} 15. Nd7 {[%clk 0:01:27]}  Qe7 {[%clk 0:02:22]} 16. Nxf8 {[%clk 0:01:27]}  Qxe3+ {[%clk 0:02:19]} 17. Rf2 {[%clk 0:01:07]}  Rxf8 {[%clk 0:02:20]} 18. Nf1 {[%clk 0:01:06]}  Qe6 {[%clk 0:02:13]} 19. Qd2 {[%clk 0:01:05]}  Re8 {[%clk 0:02:11]} 20. Ng3 {[%clk 0:00:52]}  Ba6 {[%clk 0:02:05]} 21. a3 {[%clk 0:00:49]}  g6 {[%clk 0:02:03]} 22. Rf3 {[%clk 0:00:48]}  h5 {[%clk 0:01:56]} 23. Nf1 {[%clk 0:00:42]}  cxd4 {[%clk 0:01:51]} 24. cxd4 {[%clk 0:00:40]}  Qf6 {[%clk 0:01:51]} 25. Re3 {[%clk 0:00:28]}  Re4 {[%clk 0:01:24]} 26. Rxe4 {[%clk 0:00:26]}  fxe4 {[%clk 0:01:25]} 27. g3 {[%clk 0:00:25]}  h4 {[%clk 0:01:20]} 28. Ne3 {[%clk 0:00:22]}  Bb7 {[%clk 0:01:15]} 29. Rf1 {[%clk 0:00:19]}  hxg3 {[%clk 0:01:04]} 30. hxg3 {[%clk 0:00:19]}  Bf8 {[%clk 0:01:05]} 31. Kg2 {[%clk 0:00:19]}  Bg7 {[%clk 0:01:05]} 32. Rd1 {[%clk 0:00:19]}  Qe6 {[%clk 0:00:56]} 33. Qc3 {[%clk 0:00:19]}  Bc8 {[%clk 0:00:53]} 34. Rh1 {[%clk 0:00:19]}  Ba6 {[%clk 0:00:50]} 35. Rc1 {[%clk 0:00:17]}  Qf6 {[%clk 0:00:47]} 36. Nxd5 {[%clk 0:00:17]}  Qxd4 {[%clk 0:00:43]} 37. Qxd4 {[%clk 0:00:17]}  Bxd4 {[%clk 0:00:43]} 38. b4 {[%clk 0:00:16]}  Bb7 {[%clk 0:00:41]} 39. Rc7 {[%clk 0:00:14]}  Bxd5 {[%clk 0:00:32]} 40. Rd7 {[%clk 0:00:14]}  e3+ {[%clk 0:00:11]} 41. Rxd5 {[%clk 0:00:14]}  e2 {[%clk 0:00:12]} 42. Rd8+ {[%clk 0:00:14]}  Kg7 {[%clk 0:00:12]} 43. Re8 {[%clk 0:00:15]}  Bb2 {[%clk 0:00:12]} 44. a4 {[%clk 0:00:15]}  Bc3 {[%clk 0:00:11]} 45. Rxe2 {[%clk 0:00:15]}  Bxb4 {[%clk 0:00:12]} 46. Kf3 {[%clk 0:00:15]}  Bc5 {[%clk 0:00:12]} 47. g4 {[%clk 0:00:15]}  a5 {[%clk 0:00:13]} 48. Re5 {[%clk 0:00:14]}  Kf6 {[%clk 0:00:12]} 49. g5+ {[%clk 0:00:14]}  Kg7 {[%clk 0:00:13]} 50. Ke4 {[%clk 0:00:15]}  f6 {[%clk 0:00:13]} 51. Re6 {[%clk 0:00:15]}  fxg5 {[%clk 0:00:12]} 52. fxg5 {[%clk 0:00:15]}  Kf7 {[%clk 0:00:12]} 53. Rf6+ {[%clk 0:00:15]}  Kg7 {[%clk 0:00:13]} 54. Rc6 {[%clk 0:00:15]}  Kf7 {[%clk 0:00:13]} 55. Ke5 {[%clk 0:00:15]}  Kg7 {[%clk 0:00:13]} 56. Rc7+ {[%clk 0:00:15]}  Kg8 {[%clk 0:00:09]} 57. Kf6 {[%clk 0:00:16]}  Bd6 {[%clk 0:00:07]} 58. Rb7 {[%clk 0:00:15]}  Bc5 {[%clk 0:00:06]} 59. Kxg6 {[%clk 0:00:15]}  Kf8 {[%clk 0:00:07]} 60. Kh7 {[%clk 0:00:15]}  Bd4 {[%clk 0:00:05]} 61. g6 {[%clk 0:00:15]} 1-0


[Site "https://www.chess.com"]

[Event "Late Titled Tuesday Blitz February 8 2022"]
[White "Kiolbasa, Oliwia"]
[Black "Plotkin, Mark"]
[WhiteFideId "1154613"]
[BlackFideId "2611651"]
[WhiteElo "2190"]
[BlackElo "2178"]
[Result "0-1"]
[Round "02"]
[TimeControl "180+1"]
[Date "2022.02.09"]
[WhiteClock "0:00:24"]
[BlackClock "0:02:06"]

1. e4 {[%clk 0:02:58]}  e5 {[%clk 0:02:57]} 2. Nf3 {[%clk 0:02:58]}  Nc6 {[%clk 0:02:54]} 3. Bb5 {[%clk 0:02:57]}  a6 {[%clk 0:02:53]} 4. Ba4 {[%clk 0:02:56]}  Nf6 {[%clk 0:02:52]} 5. O-O {[%clk 0:02:56]}  Nxe4 {[%clk 0:02:52]} 6. d4 {[%clk 0:02:49]}  b5 {[%clk 0:02:51]} 7. Bb3 {[%clk 0:02:49]}  d5 {[%clk 0:02:52]} 8. dxe5 {[%clk 0:02:48]}  Be6 {[%clk 0:02:52]} 9. Qe2 {[%clk 0:02:46]}  Nc5 {[%clk 0:02:43]} 10. Rd1 {[%clk 0:02:42]}  Be7 {[%clk 0:02:41]} 11. Bxd5 {[%clk 0:02:11]}  Bxd5 {[%clk 0:02:41]} 12. Nc3 {[%clk 0:02:11]}  Bc4 {[%clk 0:02:39]} 13. Rxd8+ {[%clk 0:01:52]}  Rxd8 {[%clk 0:02:40]} 14. Qe3 {[%clk 0:01:31]}  Nb4 {[%clk 0:02:38]} 15. Ne1 {[%clk 0:01:27]}  Ne6 {[%clk 0:02:35]} 16. a3 {[%clk 0:01:23]}  Nd5 {[%clk 0:02:28]} 17. Nxd5 {[%clk 0:01:18]}  Bxd5 {[%clk 0:02:29]} 18. Qg3 {[%clk 0:01:13]}  O-O {[%clk 0:02:26]} 19. Be3 {[%clk 0:01:13]}  c5 {[%clk 0:02:24]} 20. Nd3 {[%clk 0:01:08]}  Bc6 {[%clk 0:02:18]} 21. Nf4 {[%clk 0:01:05]}  Nd4 {[%clk 0:02:16]} 22. Bxd4 {[%clk 0:00:54]}  Rxd4 {[%clk 0:02:17]} 23. Nh5 {[%clk 0:00:54]}  g6 {[%clk 0:02:17]} 24. Nf6+ {[%clk 0:00:51]}  Bxf6 {[%clk 0:02:17]} 25. exf6 {[%clk 0:00:52]}  h5 {[%clk 0:02:17]} 26. Re1 {[%clk 0:00:50]}  Rg4 {[%clk 0:02:17]} 27. Qd6 {[%clk 0:00:48]}  Bxg2 {[%clk 0:02:13]} 28. h3 {[%clk 0:00:47]}  Bxh3+ {[%clk 0:02:08]} 29. Kh2 {[%clk 0:00:47]}  Bg2 {[%clk 0:02:09]} 30. Qd7 {[%clk 0:00:30]}  Be4 {[%clk 0:02:05]} 31. f3 {[%clk 0:00:27]}  Bxf3 {[%clk 0:02:04]} 32. Re8 {[%clk 0:00:27]}  Rg2+ {[%clk 0:02:05]} 33. Kh3 {[%clk 0:00:27]}  Bg4+ {[%clk 0:02:06]} 34. Kxg2 {[%clk 0:00:24]}  Bxd7 {[%clk 0:02:06]} 0-1


[Site "https://www.chess.com"]

[Event "Late Titled Tuesday Blitz February 8 2022"]
[White "Kostiukov, Alexandr"]
[Black "Goltseva, Ekaterina"]
[WhiteFideId "14108100"]
[BlackFideId "24173770"]
[WhiteElo "2202"]
[BlackElo "2140"]
[Result "0-1"]
[Round "02"]
[TimeControl "180+1"]
[Date "2022.02.09"]
[WhiteClock "0:00:04"]
[BlackClock "0:00:17"]

1. g3 {[%clk 0:03:00]}  d5 {[%clk 0:02:59]} 2. Bg2 {[%clk 0:03:00]}  Nf6 {[%clk 0:03:00]} 3. d3 {[%clk 0:03:00]}  e6 {[%clk 0:02:59]} 4. e4 {[%clk 0:03:01]}  c5 {[%clk 0:02:57]} 5. e5 {[%clk 0:03:01]}  Nfd7 {[%clk 0:02:57]} 6. Qe2 {[%clk 0:03:02]}  Nc6 {[%clk 0:02:57]} 7. Nf3 {[%clk 0:03:02]}  h6 {[%clk 0:02:55]} 8. c4 {[%clk 0:02:59]}  dxc4 {[%clk 0:02:51]} 9. dxc4 {[%clk 0:03:00]}  Qc7 {[%clk 0:02:52]} 10. Nc3 {[%clk 0:02:46]}  Ndxe5 {[%clk 0:02:46]} 11. Bf4 {[%clk 0:02:42]}  Nxf3+ {[%clk 0:02:40]} 12. Qxf3 {[%clk 0:02:31]}  Qb6 {[%clk 0:02:23]} 13. O-O {[%clk 0:02:26]}  Be7 {[%clk 0:02:20]} 14. b3 {[%clk 0:02:23]}  Nd4 {[%clk 0:02:15]} 15. Qd3 {[%clk 0:02:17]}  O-O {[%clk 0:02:12]} 16. Rad1 {[%clk 0:02:14]}  Bd7 {[%clk 0:02:00]} 17. Be5 {[%clk 0:02:04]}  Rad8 {[%clk 0:01:47]} 18. Na4 {[%clk 0:01:49]}  Bxa4 {[%clk 0:01:44]} 19. bxa4 {[%clk 0:01:50]}  Qa6 {[%clk 0:01:33]} 20. Qe4 {[%clk 0:01:28]}  Qxa4 {[%clk 0:01:24]} 21. Qxb7 {[%clk 0:01:26]}  Ne2+ {[%clk 0:01:23]} 22. Kh1 {[%clk 0:01:22]}  Rxd1 {[%clk 0:01:23]} 23. Qxe7 {[%clk 0:01:20]}  Rxf1+ {[%clk 0:01:14]} 24. Bxf1 {[%clk 0:01:21]}  Qd1 {[%clk 0:01:13]} 25. Kg2 {[%clk 0:01:20]}  Rd8 {[%clk 0:00:53]} 26. Qxc5 {[%clk 0:01:18]}  Nd4 {[%clk 0:00:48]} 27. Bxd4 {[%clk 0:00:40]}  Qxd4 {[%clk 0:00:44]} 28. Qc7 {[%clk 0:00:33]}  Qe4+ {[%clk 0:00:40]} 29. Kg1 {[%clk 0:00:32]}  Rd1 {[%clk 0:00:36]} 30. Qb8+ {[%clk 0:00:20]}  Kh7 {[%clk 0:00:36]} 31. Qb2 {[%clk 0:00:10]}  Qd3 {[%clk 0:00:30]} 32. Kg2 {[%clk 0:00:04]}  Qxf1+ {[%clk 0:00:30]} 33. Kf3 {[%clk 0:00:05]}  Qxc4 {[%clk 0:00:29]} 34. Kg2 {[%clk 0:00:06]}  Qe4+ {[%clk 0:00:29]} 35. Kh3 {[%clk 0:00:06]}  Rd4 {[%clk 0:00:25]} 36. Qb8 {[%clk 0:00:05]}  Qe2 {[%clk 0:00:20]} 37. Kg2 {[%clk 0:00:05]}  Rd2 {[%clk 0:00:19]} 38. Qf4 {[%clk 0:00:04]}  f5 {[%clk 0:00:15]} 39. h4 {[%clk 0:00:03]}  Qe4+ {[%clk 0:00:16]} 40. Qxe4 {[%clk 0:00:03]}  fxe4 {[%clk 0:00:17]} 41. h5 {[%clk 0:00:04]}  e3 {[%clk 0:00:17]} 0-1


[Site "https://www.chess.com"]

[Event "Late Titled Tuesday Blitz February 8 2022"]
[White "Kraus, Tomas"]
[Black "Djokic, Mihailo"]
[WhiteFideId "331708"]
[BlackFideId "976440"]
[WhiteElo "2389"]
[BlackElo "2008"]
[Result "0-1"]
[Round "02"]
[TimeControl "180+1"]
[Date "2022.02.09"]
[WhiteClock "0:00:06"]
[BlackClock "0:00:50"]

1. e4 {[%clk 0:03:00]}  c5 {[%clk 0:02:59]} 2. Nf3 {[%clk 0:02:57]}  d6 {[%clk 0:02:59]} 3. d4 {[%clk 0:02:55]}  cxd4 {[%clk 0:03:00]} 4. Nxd4 {[%clk 0:02:56]}  Nf6 {[%clk 0:02:59]} 5. Nc3 {[%clk 0:02:56]}  g6 {[%clk 0:03:00]} 6. Be3 {[%clk 0:02:53]}  Bg7 {[%clk 0:03:00]} 7. f3 {[%clk 0:02:50]}  O-O {[%clk 0:03:00]} 8. Qd2 {[%clk 0:02:50]}  Nc6 {[%clk 0:02:59]} 9. Bc4 {[%clk 0:02:49]}  Bd7 {[%clk 0:02:59]} 10. O-O-O {[%clk 0:02:49]}  Rc8 {[%clk 0:02:59]} 11. Bb3 {[%clk 0:02:49]}  Ne5 {[%clk 0:03:00]} 12. Bh6 {[%clk 0:02:48]}  Bxh6 {[%clk 0:03:00]} 13. Qxh6 {[%clk 0:02:47]}  Rxc3 {[%clk 0:03:01]} 14. bxc3 {[%clk 0:02:47]}  Qc7 {[%clk 0:03:02]} 15. Qd2 {[%clk 0:02:45]}  a5 {[%clk 0:03:01]} 16. a3 {[%clk 0:02:43]}  Qc5 {[%clk 0:02:59]} 17. Kb2 {[%clk 0:02:42]}  Rc8 {[%clk 0:02:56]} 18. h4 {[%clk 0:02:39]}  a4 {[%clk 0:02:54]} 19. Ba2 {[%clk 0:02:38]}  Nc4+ {[%clk 0:02:12]} 20. Bxc4 {[%clk 0:02:25]}  Qxc4 {[%clk 0:02:10]} 21. Qd3 {[%clk 0:02:11]}  Qc5 {[%clk 0:02:05]} 22. h5 {[%clk 0:02:03]}  Nxh5 {[%clk 0:02:05]} 23. g4 {[%clk 0:02:02]}  Nf6 {[%clk 0:02:00]} 24. Qe3 {[%clk 0:01:56]}  Be6 {[%clk 0:01:56]} 25. Rde1 {[%clk 0:01:45]}  Qc4 {[%clk 0:01:45]} 26. Nxe6 {[%clk 0:01:44]}  fxe6 {[%clk 0:01:45]} 27. Qd4 {[%clk 0:01:39]}  Qb5+ {[%clk 0:01:39]} 28. Qb4 {[%clk 0:01:34]}  Qe5 {[%clk 0:01:40]} 29. Re3 {[%clk 0:01:14]}  Nd5 {[%clk 0:01:40]} 30. Qxb7 {[%clk 0:01:09]}  Rxc3 {[%clk 0:01:34]} 31. Rxc3 {[%clk 0:01:05]}  Qxc3+ {[%clk 0:01:34]} 32. Kb1 {[%clk 0:01:05]}  Qxf3 {[%clk 0:01:29]} 33. Re1 {[%clk 0:00:44]}  Qf2 {[%clk 0:01:24]} 34. Qc8+ {[%clk 0:00:31]}  Kf7 {[%clk 0:01:22]} 35. Rd1 {[%clk 0:00:32]}  Qe2 {[%clk 0:01:15]} 36. Rh1 {[%clk 0:00:28]}  Nf6 {[%clk 0:01:12]} 37. Qc6 {[%clk 0:00:20]}  Qxg4 {[%clk 0:01:08]} 38. Qxa4 {[%clk 0:00:15]}  Qf3 {[%clk 0:01:08]} 39. Re1 {[%clk 0:00:13]}  h5 {[%clk 0:01:08]} 40. Qc4 {[%clk 0:00:12]}  h4 {[%clk 0:01:06]} 41. a4 {[%clk 0:00:11]}  h3 {[%clk 0:01:06]} 42. a5 {[%clk 0:00:10]}  h2 {[%clk 0:01:06]} 43. Qf1 {[%clk 0:00:10]}  Qc3 {[%clk 0:01:03]} 44. a6 {[%clk 0:00:10]}  Qb4+ {[%clk 0:01:03]} 45. Kc1 {[%clk 0:00:09]}  Qa3+ {[%clk 0:01:02]} 46. Kd1 {[%clk 0:00:09]}  Kg7 {[%clk 0:00:57]} 47. Qh1 {[%clk 0:00:08]}  Qa1+ {[%clk 0:00:56]} 48. Ke2 {[%clk 0:00:07]}  Qxa6+ {[%clk 0:00:56]} 49. Kf2 {[%clk 0:00:07]}  Qb6+ {[%clk 0:00:54]} 50. Kg3 {[%clk 0:00:06]}  Nh5+ {[%clk 0:00:50]} 51. Kxh2 {[%clk 0:00:04]}  Qf2+ {[%clk 0:00:50]} 52. Qg2 {[%clk 0:00:05]}  Qxe1 {[%clk 0:00:50]} 53. e5 {[%clk 0:00:06]}  Qxe5+ {[%clk 0:00:50]} 54. Kh3 {[%clk 0:00:06]}  Nf4+ {[%clk 0:00:50]} 0-1


[Site "https://www.chess.com"]

[Event "Late Titled Tuesday Blitz February 8 2022"]
[White "Maksimovic, Bojan"]
[Black "Kanyamarala, Trisha"]
[WhiteFideId "14408120"]
[BlackFideId "45004722"]
[WhiteElo "2450"]
[BlackElo "2002"]
[Result "1-0"]
[Round "02"]
[TimeControl "180+1"]
[Date "2022.02.09"]
[WhiteClock "0:00:57"]
[BlackClock "0:00:05"]

1. Nf3 {[%clk 0:03:00]}  d5 {[%clk 0:02:57]} 2. e3 {[%clk 0:03:00]}  e6 {[%clk 0:02:57]} 3. b3 {[%clk 0:02:59]}  Nf6 {[%clk 0:02:54]} 4. Bb2 {[%clk 0:02:59]}  Bd6 {[%clk 0:02:54]} 5. c4 {[%clk 0:02:59]}  O-O {[%clk 0:02:54]} 6. Nc3 {[%clk 0:02:59]}  c5 {[%clk 0:02:53]} 7. cxd5 {[%clk 0:02:59]}  Nxd5 {[%clk 0:02:51]} 8. Nxd5 {[%clk 0:02:59]}  exd5 {[%clk 0:02:51]} 9. Be2 {[%clk 0:03:00]}  Nc6 {[%clk 0:02:50]} 10. O-O {[%clk 0:03:00]}  d4 {[%clk 0:02:49]} 11. Rc1 {[%clk 0:02:41]}  Be7 {[%clk 0:02:29]} 12. exd4 {[%clk 0:02:35]}  cxd4 {[%clk 0:02:27]} 13. d3 {[%clk 0:02:13]}  Bf5 {[%clk 0:02:18]} 14. Nd2 {[%clk 0:02:11]}  Bg5 {[%clk 0:02:11]} 15. a3 {[%clk 0:02:04]}  Re8 {[%clk 0:01:59]} 16. Rc2 {[%clk 0:02:00]}  Qe7 {[%clk 0:01:49]} 17. Ne4 {[%clk 0:01:53]}  Bxe4 {[%clk 0:01:06]} 18. dxe4 {[%clk 0:01:54]}  Qxe4 {[%clk 0:01:06]} 19. Bf3 {[%clk 0:01:52]}  Qe6 {[%clk 0:01:02]} 20. Bxc6 {[%clk 0:01:52]}  bxc6 {[%clk 0:01:01]} 21. Qxd4 {[%clk 0:01:50]}  Bf6 {[%clk 0:01:00]} 22. Qc5 {[%clk 0:01:34]}  Bxb2 {[%clk 0:00:50]} 23. Rxb2 {[%clk 0:01:35]}  Rab8 {[%clk 0:00:49]} 24. b4 {[%clk 0:01:34]}  Rb7 {[%clk 0:00:39]} 25. h3 {[%clk 0:01:33]}  h6 {[%clk 0:00:36]} 26. Rc1 {[%clk 0:01:32]}  Rd8 {[%clk 0:00:24]} 27. Rbc2 {[%clk 0:01:10]}  Rb6 {[%clk 0:00:24]} 28. Qc4 {[%clk 0:01:05]}  Qf6 {[%clk 0:00:16]} 29. Re2 {[%clk 0:01:03]}  Qg5 {[%clk 0:00:13]} 30. Rce1 {[%clk 0:01:03]}  g6 {[%clk 0:00:11]} 31. Re7 {[%clk 0:01:02]}  Rd5 {[%clk 0:00:07]} 32. Rxa7 {[%clk 0:00:58]}  Qd2 {[%clk 0:00:06]} 33. Qe2 {[%clk 0:00:57]}  Qc3 {[%clk 0:00:05]} 34. Qe8+ {[%clk 0:00:57]} 1-0


[Site "https://www.chess.com"]